bitfinex-derivatives/quotes_BTCF0:USTF0_20250926
["timestamp","ask_amount","ask_price","bid_price","bid_amount"]
[1758844800764,0.3658,109050.0,109040.0,0.01483]
[1758844801070,0.7658,109050.0,109040.0,0.01483]
[1758844802765,0.3658,109050.0,109040.0,0.01483]
[1758844803360,0.3658,109050.0,109040.0,0.03668]
[1758844803565,0.3658,109050.0,109040.0,0.01483]
[1758844804368,0.457449,109050.0,109040.0,0.01483]
[1758844804860,0.857449,109050.0,109040.0,0.01483]
[1758844805468,0.857449,109050.0,109040.0,0.09725751]
[1758844805764,1.735289,109050.0,109040.0,0.09725751]
[1758844806172,1.735289,109050.0,109040.0,0.01483]
[1758844806463,1.735289,109050.0,109040.0,0.09725751]
[1758844807770,1.735289,109050.0,109040.0,0.01483]
[1758844808270,1.735289,109050.0,109030.0,0.01383]
[1758844808271,0.0916572,109040.0,109030.0,0.01383]
[1758844808469,0.4524572,109040.0,109030.0,0.09625751]
[1758844809366,1.3316172,109040.0,109030.0,0.11929751]
[1758844809570,1.3316172,109040.0,109030.0,0.09725751]
[1758844809571,1.7356172,109040.0,109030.0,0.09725751]
[1758844809767,0.0916656,109030.0,109020.0,0.12825851]
[1758844810075,0.4524656,109030.0,109020.0,0.01286]
[1758844810372,0.4514656,109030.0,109020.0,0.01286]
[1758844811072,0.4514656,109030.0,109020.0,0.0359]
[1758844811271,0.4514656,109030.0,109020.0,0.01286]
[1758844812464,0.4574656,109030.0,109020.0,0.01386]
[1758844812865,0.4574656,109030.0,109020.0,0.0369]
[1758844813070,0.3668,109030.0,109020.0,0.528574]
[1758844813372,1.24908,109030.0,109020.0,0.528574]
[1758844813771,1.24908,109030.0,109020.0,0.64398139]
[1758844814065,1.3407456,109030.0,109020.0,0.55230739]
[1758844814266,1.3407456,109030.0,109020.0,0.15230739]
[1758844814867,1.3407456,109030.0,109020.0,0.0369]
[1758844815476,1.3407456,109030.0,109020.0,0.01386]
[1758844816071,1.7407456,109030.0,109020.0,0.12926739]
[1758844817378,1.7407456,109030.0,109020.0,0.01386]
[1758844818680,1.7407456,109030.0,109020.0,0.09630269]
[1758844821680,0.8584656,109030.0,109020.0,0.0369]
[1758844821882,1.3420256,109030.0,109020.0,0.528574]
[1758844822179,1.3420256,109030.0,109020.0,0.55230739]
[1758844822987,1.3420256,109030.0,109020.0,0.4369]
[1758844823278,1.3420256,109030.0,109020.0,0.55232593]
[1758844824380,1.3420256,109030.0,109020.0,0.6347783]
[1758844824581,1.3420256,109030.0,109020.0,0.51935237]
[1758844825081,1.3420256,109030.0,109020.0,0.09631237]
[1758844826180,1.7420256,109030.0,109020.0,0.09631237]
[1758844826684,1.7420256,109030.0,109020.0,0.08345237]
[1758844826880,0.091674,109020.0,109010.0,0.12828593]
[1758844827078,0.852474,109020.0,109010.0,0.04014243]
[1758844827277,0.852474,109020.0,109010.0,0.01267]
[1758844827984,0.856474,109020.0,109010.0,0.01367]
[1758844830082,0.456474,109020.0,109010.0,0.01367]
[1758844830284,1.341834,109020.0,109010.0,0.03547]
[1758844833281,1.341834,109020.0,109010.0,0.01367]
[1758844833584,1.741834,109020.0,109010.0,0.01367]
[1758844834085,1.341834,109020.0,109010.0,0.01367]
[1758844836482,1.35261695,109020.0,109010.0,0.01367]
[1758844836877,1.42469255,109020.0,109010.0,0.01367]
[1758844838182,0.091682,109010.0,109000.0,0.01272]
[1758844838486,0.452482,109010.0,109000.0,0.01272]
[1758844839374,0.455482,109010.0,109000.0,0.01372]
[1758844839990,0.452482,109010.0,109000.0,0.01272]
[1758844840185,0.460482,109010.0,109000.0,0.01372]
[1758844841490,0.460482,109010.0,109000.0,0.03552]
[1758844844089,1.345162,109010.0,109000.0,0.55090711]
[1758844844285,1.345162,109010.0,109000.0,0.43552]
[1758844847296,1.25348,109010.0,109000.0,0.5272107]
[1758844847689,1.3451623,109010.0,109000.0,0.43552]
[1758844849696,1.3451623,109010.0,109000.0,0.55093037]
[1758844850796,1.3451623,109010.0,109000.0,0.64262107]
[1758844851093,1.3451623,109010.0,109000.0,0.55093037]
[1758844851290,1.3451623,109010.0,109000.0,0.43552]
[1758844851489,1.3451623,109010.0,109000.0,0.55093753]
[1758844853399,1.3451623,109010.0,109000.0,0.64262833]
[1758844854086,1.25348,109010.0,109000.0,0.1272108]
[1758844854292,1.25348,109010.0,109000.0,0.69206582]
[1758844854701,1.3451623,109010.0,109000.0,0.60037502]
[1758844854892,1.25348,109010.0,109000.0,0.69206572]
[1758844855200,1.25348,109010.0,109000.0,0.5272107]
[1758844858398,0.89268,109010.0,109000.0,0.5272107]
[1758844858600,1.25348,109010.0,109000.0,0.5272107]
[1758844861399,1.25348,109010.0,109000.0,0.64267841]
[1758844861802,0.89268,109010.0,109000.0,0.64267841]
[1758844862902,1e-07,109010.0,109000.0,1.09521732]
[1758844863198,0.3848,109030.0,109020.0,0.1268339]
[1758844863393,0.7456,109040.0,109030.0,0.03516]
[1758844863593,0.837257,109040.0,109030.0,0.03516]
[1758844863999,1.237257,109040.0,109030.0,0.01322]
[1758844864700,1.24810713,109040.0,109030.0,0.01322]
[1758844865200,1.25310713,109040.0,109030.0,0.01422]
[1758844869704,1.25310713,109040.0,109010.0,0.02295]
[1758844869705,0.0916739,109020.0,109010.0,0.02295]
[1758844869999,1.3394739,109020.0,109010.0,0.03578]
[1758844870794,1.3434739,109020.0,109010.0,0.03678]
[1758844871607,1.3434739,109020.0,109010.0,0.01383]
[1758844871806,1.3434739,109020.0,109010.0,0.03678]
[1758844873299,1.7042739,109020.0,109010.0,0.03678]
[1758844874406,1.7042739,109020.0,109010.0,0.01383]
[1758844874609,2.1042739,109020.0,109010.0,0.01383]
[1758844876002,2.1042739,109020.0,109010.0,0.001]
[1758844876608,2.1042739,109020.0,109010.0,0.01383]
[1758844877700,2.17810225,109020.0,109010.0,0.01383]
[1758844878610,2.17810225,109020.0,109010.0,0.001]
[1758844880610,2.17810225,109020.0,109010.0,0.01383]
[1758844881110,2.17810225,109020.0,109010.0,0.03678]
[1758844881410,1.77810225,109020.0,109010.0,0.03678]
[1758844881908,1.77810225,109020.0,109010.0,0.01383]
[1758844885010,2.17810225,109020.0,109010.0,0.01383]
[1758844885806,2.17810225,109020.0,109000.0,0.01283]
[1758844885807,0.091682,109010.0,109000.0,0.01283]
[1758844886014,0.452482,109010.0,109000.0,0.01283]
[1758844887011,0.455482,109010.0,109000.0,0.01283]
[1758844888612,0.455482,109010.0,109000.0,0.03584]
[1758844889005,0.458482,109010.0,109000.0,0.03684]
[1758844890215,0.458482,109010.0,109000.0,0.01383]
[1758844890713,0.528682,109010.0,109000.0,0.01383]
[1758844893217,0.528682,109010.0,109000.0,0.03684]
[1758844894517,0.458482,109010.0,109000.0,0.03684]
[1758844894816,1.25292,109010.0,109000.0,0.5285306]
[1758844895703,1.3446021,109010.0,109000.0,0.43684]
[1758844895913,1.3446021,109010.0,109000.0,0.5285306]
[1758844896503,1.3446021,109010.0,109000.0,0.43684]
[1758844898420,1.3446021,109010.0,109000.0,0.03684]
[1758844901020,1.3446021,109010.0,109000.0,0.1285306]
[1758844901021,1.25292,109010.0,109000.0,0.1285306]
[1758844901812,1.3446021,109010.0,109000.0,0.1285306]
[1758844902313,1.25292,109010.0,109000.0,0.1285306]
[1758844904425,1.25292,109010.0,109000.0,0.5285306]
[1758844904922,1.3446022,109010.0,109000.0,0.03684]
[1758844905322,1.3446022,109010.0,109000.0,0.1285306]
[1758844905626,1.25292,109010.0,109000.0,0.1285306]
[1758844907123,1.3446021,109010.0,109000.0,0.1285306]
[1758844908523,1.25292,109010.0,109000.0,0.1285306]
[1758844908824,1.3446022,109010.0,109000.0,0.1285306]
[1758844910527,1.3446022,109010.0,109000.0,0.03684]
[1758844911327,1.3446022,109010.0,109000.0,0.1285306]
[1758844911822,0.8904,109010.0,109000.0,0.62026951]
[1758844912025,0.8904,109010.0,109000.0,1.09647823]
[1758844912624,0.006,109010.0,109000.0,1.09647823]
[1758844913727,0.006,109010.0,109000.0,0.98106951]
[1758844914525,0.006,109010.0,109000.0,1.09647823]
[1758844915324,0.4524615,109040.0,109030.0,0.1273054]
[1758844915325,0.3608,109040.0,109030.0,0.1273054]
[1758844915529,1.24424,109040.0,109030.0,0.1273054]
[1758844916028,1.24424,109040.0,109030.0,0.13770078]
[1758844916530,1.335897,109040.0,109030.0,0.1273054]
[1758844916733,1.343897,109040.0,109030.0,0.1283054]
[1758844917226,1.343897,109040.0,109030.0,0.13905909]
[1758844917629,1.343897,109040.0,109030.0,0.1283054]
[1758844917830,1.343897,109040.0,109030.0,0.03664]
[1758844918231,1.335897,109040.0,109030.0,0.03564]
[1758844918422,1.338897,109040.0,109030.0,0.03664]
[1758844919630,1.338897,109040.0,109030.0,0.1283053]
[1758844920028,1.338897,109040.0,109030.0,0.03664]
[1758844920536,1.338897,109040.0,109030.0,0.1283053]
[1758844922937,1.338897,109040.0,109030.0,0.03664]
[1758844925041,1.338897,109040.0,109030.0,0.1283053]
[1758844925240,1.24724,109040.0,109030.0,0.1283053]
[1758844927541,0.003,109040.0,109030.0,0.98081896]
[1758844930737,0.3608,109060.0,109050.0,0.1285885]
[1758844931442,1.24152,109080.0,109070.0,0.1285718]
[1758844932938,1.24652,109080.0,109070.0,0.1295718]
[1758844933737,1.24652,109080.0,109070.0,0.21477806]
[1758844934630,0.88572,109080.0,109070.0,0.21477806]
[1758844936533,0.005,109080.0,109070.0,0.21477806]
[1758844937746,0.005,109080.0,109070.0,0.57557806]
[1758844941546,0.005,109080.0,109070.0,1.06725809]
[1758844944236,2.22092,109110.0,109090.0,0.1274549]
[1758844944438,3.12351278,109110.0,109100.0,0.1274465]
[1758844945137,3.0976,109110.0,109100.0,0.1274465]
[1758844946050,1.26299716,109110.0,109100.0,0.1274465]
[1758844946249,1.23748,109110.0,109100.0,0.1274465]
[1758844946551,0.87668,109110.0,109100.0,0.1274465]
[1758844947244,0.88168,109110.0,109100.0,0.1284465]
[1758844947451,0.88168,109110.0,109100.0,0.22010132]
[1758844947649,0.88168,109110.0,109100.0,0.58090132]
[1758844948153,1.23676,109130.0,109120.0,0.1274297]
[1758844948451,1.26184214,109130.0,109120.0,0.1274297]
[1758844949044,1.26156214,109130.0,109120.0,0.1274297]
[1758844950043,0.90076214,109130.0,109120.0,0.49894693]
[1758844950248,0.90076214,109130.0,109120.0,0.13814693]
[1758844950448,0.90076214,109130.0,109120.0,0.13914693]
[1758844950449,0.90776214,109130.0,109120.0,0.13914693]
[1758844950751,0.03208214,109130.0,109120.0,0.21216762]
[1758844951551,0.39288214,109130.0,109120.0,0.21216762]
[1758844951854,0.38988214,109130.0,109120.0,0.21116762]
[1758844952046,0.48146344,109130.0,109120.0,0.10886069]
[1758844952356,0.88146344,109130.0,109120.0,0.01361]
[1758844952648,0.88146344,109130.0,109120.0,0.03584]
[1758844953050,0.78988214,109130.0,109120.0,0.1274297]
[1758844953250,0.3648,109130.0,109120.0,0.1274297]
[1758844953951,0.4667127,109130.0,109120.0,0.03584]
[1758844955854,0.4667127,109130.0,109120.0,0.01361]
[1758844957945,0.4667127,109130.0,109120.0,0.03584]
[1758844959060,0.4563813,109130.0,109120.0,0.03584]
[1758844960150,1.3312213,109130.0,109120.0,0.03584]
[1758844961952,1.34125046,109130.0,109120.0,0.03584]
[1758844962758,1.3312213,109130.0,109120.0,0.03584]
[1758844963559,1.34130471,109130.0,109120.0,0.03584]
[1758844964258,1.34130471,109130.0,109120.0,0.01361]
[1758844964452,1.34130471,109130.0,109120.0,0.03584]
[1758844964849,1.3312213,109130.0,109120.0,0.03584]
[1758844965053,1.3312213,109130.0,109120.0,0.1274297]
[1758844965862,1.23964,109130.0,109120.0,0.1274297]
[1758844966763,1.23764,109130.0,109120.0,0.1274297]
[1758844969063,1.3292213,109130.0,109120.0,0.03584]
[1758844970066,1.3292213,109130.0,109120.0,0.1274297]
[1758844971764,1.23764,109130.0,109120.0,0.1274297]
[1758844974369,1.23752,109130.0,109120.0,0.1274297]
[1758844975068,0.002,109130.0,109120.0,0.61906772]
[1758844975457,0.3608,109150.0,109140.0,0.03546]
[1758844975458,1.23596,109150.0,109140.0,0.03546]
[1758844975655,1.1605605,109160.0,109150.0,0.1270245]
[1758844975860,1.3278005,109160.0,109150.0,0.1270245]
[1758844976467,1.23624,109160.0,109150.0,0.1270245]
[1758844978165,0.3608,109160.0,109150.0,0.61863734]
[1758844978364,0.3668,109160.0,109150.0,0.61963734]
[1758844978965,0.006,109160.0,109150.0,0.98043734]
[1758844979167,1.23608,109170.0,109160.0,0.1270161]
[1758844980059,0.3608,109170.0,109160.0,0.61862894]
[1758844980768,1.3284595,109180.0,109170.0,0.1270077]
[1758844981467,1.23692,109180.0,109170.0,0.1270077]
[1758844981967,1.23716,109180.0,109170.0,0.22860422]
[1758844982466,1.3296993,109180.0,109170.0,0.22860422]
[1758844982661,1.3296993,109180.0,109170.0,0.13705652]
[1758844983075,1.23816,109180.0,109170.0,0.22860422]
[1758844983671,0.3618,109180.0,109170.0,0.21860376]
[1758844984777,0.3618,109180.0,109170.0,0.61860376]
[1758844984964,0.001,109180.0,109170.0,0.69151775]
[1758844985259,0.001,109180.0,109170.0,1.06248773]
[1758844985465,1.07768,109200.0,109190.0,0.091531]
[1758844985665,0.38394693,109200.0,109190.0,0.128481]
[1758844986172,0.38394693,109200.0,109190.0,0.22007706]
[1758844986374,0.47546953,109200.0,109190.0,0.03695]
[1758844986777,0.38394693,109200.0,109190.0,0.128481]
[1758844987277,0.3608,109200.0,109190.0,0.128481]
[1758844987780,0.3608,109210.0,109200.0,0.1284726]
[1758844988083,0.38385816,109210.0,109200.0,0.1284726]
[1758844988570,0.38385816,109210.0,109200.0,0.22004349]
[1758844989471,0.01240355,109220.0,109210.0,0.0915142]
[1758844989674,0.01240355,109220.0,109210.0,0.1284642]
[1758844990176,0.01240355,109220.0,109210.0,0.98083509]
[1758844991167,0.3608,109230.0,109220.0,0.1284558]
[1758844991476,0.3608,109240.0,109230.0,0.1284474]
[1758844991875,0.3608,109240.0,109230.0,0.22000991]
[1758844992073,0.3608,109250.0,109240.0,0.0914891]
[1758844992277,0.3608,109250.0,109240.0,0.1284391]
[1758844992493,0.3608,109250.0,109240.0,0.13882403]
[1758844992668,0.3608,109250.0,109240.0,0.23036977]
[1758844993480,0.3608,109250.0,109240.0,0.12849574]
[1758844993977,0.4522807,109250.0,109240.0,0.12849574]
[1758844994278,0.0914891,109240.0,109230.0,0.01379]
[1758844994467,1.3333691,109240.0,109230.0,0.03695]
[1758844996485,1.3363691,109240.0,109230.0,0.03695]
[1758844996683,1.7363691,109240.0,109230.0,0.01379]
[1758844997586,0.0914974,109230.0,109220.0,0.01379]
[1758844997784,0.4522974,109230.0,109220.0,0.03695]
[1758844998494,0.3608,109230.0,109220.0,0.03695]
[1758844998788,1.24712,109230.0,109220.0,0.1284558]
[1758844999186,1.3386174,109230.0,109220.0,0.03695]
[1758844999689,0.8876,109230.0,109220.0,0.62000993]
[1758844999888,1.2484,109230.0,109220.0,0.62000993]
[1758845000090,0.8876,109230.0,109220.0,0.62000993]
[1758845001287,0.3608,109240.0,109230.0,0.11482087]
[1758845001489,0.38221438,109240.0,109230.0,0.11482087]
[1758845001678,0.3608,109250.0,109240.0,0.128439]
[1758845001882,0.38221452,109250.0,109240.0,0.19988639]
[1758845002485,0.38221452,109250.0,109240.0,0.29142376]
[1758845002688,0.02141452,109250.0,109240.0,0.29142376]
[1758845002888,0.02241452,109250.0,109240.0,0.29142376]
[1758845009494,0.11389522,109250.0,109240.0,0.19993476]
[1758845009694,0.47469522,109250.0,109240.0,0.19993476]
[1758845010199,0.47469522,109250.0,109240.0,0.03695]
[1758845011288,1.76389522,109250.0,109230.0,0.01379]
[1758845011502,0.4522891,109240.0,109230.0,0.03592]
[1758845011798,0.47370362,109240.0,109230.0,0.03592]
[1758845013298,0.4522891,109240.0,109230.0,0.03692]
[1758845013800,0.4522891,109240.0,109230.0,0.10262008]
[1758845014001,0.3608,109240.0,109230.0,0.19411748]
[1758845014204,0.3618,109240.0,109230.0,0.19304822]
[1758845014498,0.3618,109240.0,109230.0,0.1274174]
[1758845015102,0.3608,109240.0,109230.0,0.1274174]
[1758845015300,0.3608,109240.0,109230.0,0.2007936]
[1758845015902,1.25,109250.0,109240.0,0.1266091]
[1758845016102,1.25,109250.0,109240.0,0.19220728]
[1758845016797,1.3414807,109250.0,109240.0,0.19220728]
[1758845017301,1.3414807,109250.0,109240.0,0.10071818]
[1758845017896,1.3424807,109250.0,109240.0,0.03512]
[1758845019600,1.3424807,109250.0,109230.0,0.07938818]
[1758845019601,0.0914891,109240.0,109230.0,0.07938818]
[1758845019796,0.4522891,109240.0,109230.0,0.01379]
[1758845020204,0.4522891,109240.0,109230.0,0.1274174]
[1758845020600,0.3608,109240.0,109230.0,0.1274174]
[1758845020903,0.3608,109240.0,109230.0,0.1284174]
[1758845022297,1.21656328,109250.0,109240.0,0.1044791]
[1758845022505,0.33076328,109250.0,109240.0,0.1266091]
[1758845023002,0.33076328,109250.0,109240.0,0.21815484]
[1758845023600,0.33176328,109250.0,109240.0,0.21815484]
[1758845024192,0.33176328,109250.0,109240.0,0.12666574]
[1758845024398,0.42324398,109250.0,109240.0,0.21815484]
[1758845024603,0.42324398,109250.0,109240.0,0.12666574]
[1758845024802,0.42324398,109250.0,109240.0,0.03512]
[1758845026000,0.33176328,109250.0,109240.0,0.1266091]
[1758845027194,0.42324398,109250.0,109240.0,0.1266091]
[1758845027392,0.42224398,109250.0,109240.0,0.1276091]
[1758845028107,0.33076328,109250.0,109240.0,0.21914647]
[1758845028307,0.33076328,109250.0,109240.0,0.28474465]
[1758845028500,1.14228,109260.0,109250.0,0.1266007]
[1758845028899,0.78148,109260.0,109250.0,0.1266007]
[1758845030107,0.3608,109270.0,109260.0,0.1265923]
[1758845030305,1.2444,109270.0,109260.0,0.1265923]
[1758845031108,1.2464,109270.0,109260.0,0.1265923]
[1758845032197,1.3378639,109270.0,109260.0,0.1265923]
[1758845033004,0.3628,109270.0,109260.0,0.61811291]
[1758845033606,0.4542639,109270.0,109260.0,0.03512]
[1758845033811,0.4542639,109270.0,109260.0,0.1265923]
[1758845034002,0.4542639,109270.0,109260.0,0.03512]
[1758845036308,0.0914723,109260.0,109250.0,0.01299]
[1758845036507,1.3352323,109260.0,109250.0,0.01299]
[1758845036903,1.3352323,109260.0,109240.0,0.01299]
[1758845036904,0.0914807,109250.0,109240.0,0.01299]
[1758845037104,0.4522807,109250.0,109240.0,0.01299]
[1758845037711,0.8522807,109250.0,109240.0,0.01299]
[1758845038111,0.0914891,109240.0,109230.0,0.01379]
[1758845038412,1.3351291,109240.0,109230.0,0.07938818]
[1758845038810,1.7351291,109240.0,109230.0,0.06559818]
[1758845039206,0.0914974,109230.0,109220.0,0.07868818]
[1758845039415,0.4522974,109230.0,109220.0,0.07868818]
[1758845040111,0.87067227,109230.0,109220.0,0.06559818]
[1758845040603,0.0915142,109210.0,109200.0,0.0950879]
[1758845040802,1.6955542,109210.0,109200.0,0.0950879]
[1758845041116,1.6935542,109210.0,109200.0,0.0950879]
[1758845041411,1.6935542,109210.0,109200.0,0.1171879]
[1758845041915,0.7216,109210.0,109200.0,0.6087105]
[1758845042112,1.60432,109210.0,109200.0,0.6087105]
[1758845042811,1.60532,109210.0,109200.0,0.6087105]
[1758845043211,1.60532,109210.0,109200.0,0.5171879]
[1758845043411,1.6968342,109210.0,109200.0,0.43519]
[1758845043616,1.6978342,109210.0,109200.0,0.11735662]
[1758845044620,1.60632,109210.0,109200.0,0.11735662]
[1758845045817,1.60632,109210.0,109200.0,0.03519]
[1758845046317,0.7226,109210.0,109200.0,0.1267126]
[1758845046519,1.5368,109210.0,109200.0,0.1267126]
[1758845046921,1.6283142,109210.0,109200.0,0.1267126]
[1758845047118,1.6293142,109210.0,109200.0,0.1267126]
[1758845047319,1.6293142,109210.0,109200.0,0.03519]
[1758845049316,1.6283142,109210.0,109200.0,0.03519]
[1758845049817,2.0283142,109210.0,109200.0,0.01309]
[1758845050026,2.0273142,109210.0,109200.0,0.01309]
[1758845050216,2.0293142,109210.0,109200.0,0.01309]
[1758845050416,2.0964742,109210.0,109200.0,0.03409]
[1758845050623,2.0964742,109210.0,109200.0,0.09968759]
[1758845051623,2.0964742,109210.0,109200.0,0.07868759]
[1758845052122,2.0964742,109210.0,109200.0,0.01309]
[1758845054324,0.0915226,109200.0,109190.0,0.07868759]
[1758845054627,0.4523226,109200.0,109190.0,0.07868759]
[1758845055518,0.4523226,109200.0,109190.0,0.06559759]
[1758845055729,0.8523226,109200.0,109190.0,0.06559759]
[1758845056124,0.0915309,109190.0,109180.0,0.09968759]
[1758845056324,1.3336109,109190.0,109180.0,0.09968759]
[1758845057535,1.3346109,109190.0,109180.0,0.09968759]
[1758845058037,1.24308,109190.0,109180.0,0.19122689]
[1758845058334,1.3346109,109190.0,109180.0,0.19122689]
[1758845059339,1.3346109,109190.0,109180.0,0.09968759]
[1758845059838,1.3346109,109190.0,109180.0,0.03409]
[1758845060138,0.3618,109190.0,109180.0,0.1256293]
[1758845060339,0.88212,109190.0,109180.0,0.5256293]
[1758845060539,0.88212,109190.0,109180.0,0.68281456]
[1758845060932,0.001,109190.0,109180.0,0.68281456]
[1758845062238,1.2416,109200.0,109190.0,0.1257009]
[1758845062835,1.2416,109200.0,109190.0,0.21728857]
[1758845063234,1.2416,109200.0,109190.0,0.28288616]
[1758845065036,1.2426,109200.0,109190.0,0.28288616]
[1758845066540,1.3341226,109200.0,109190.0,0.28288616]
[1758845066737,1.3341226,109200.0,109190.0,0.19135526]
[1758845067639,1.3341226,109200.0,109190.0,0.07876759]
[1758845067842,1.3341226,109200.0,109190.0,0.10205759]
[1758845068946,1.3341226,109200.0,109190.0,0.07876759]
[1758845069347,1.3341226,109200.0,109190.0,0.10205759]
[1758845073744,1.3341226,109200.0,109190.0,0.03646]
[1758845074752,1.3341226,109200.0,109190.0,0.10226877]
[1758845075151,1.3341226,109200.0,109190.0,0.03646]
[1758845075754,1.3341226,109200.0,109190.0,0.1279909]
[1758845077551,1.3341226,109200.0,109190.0,0.03646]
[1758845078455,1.3341226,109200.0,109190.0,0.01317]
[1758845078855,1.3341226,109200.0,109190.0,0.09533662]
[1758845079053,1.7341226,109200.0,109190.0,0.09533662]
[1758845079555,1.3341226,109200.0,109190.0,0.11862662]
[1758845079857,1.3341226,109200.0,109190.0,0.03646]
[1758845080250,1.3341226,109200.0,109190.0,0.01317]
[1758845080754,1.3341226,109200.0,109190.0,0.03646]
[1758845082159,0.4533226,109200.0,109190.0,0.1279909]
[1758845082359,1.3298026,109200.0,109190.0,0.1279909]
[1758845083359,1.3298026,109200.0,109190.0,0.03646]
[1758845083559,1.3298026,109200.0,109190.0,0.01317]
[1758845085458,1.3298026,109200.0,109190.0,0.07905952]
[1758845087563,1.3298026,109200.0,109190.0,0.10234952]
[1758845087755,1.3298026,109200.0,109190.0,0.03646]
[1758845088565,1.3298026,109200.0,109190.0,0.1279909]
[1758845089067,1.23756,109200.0,109190.0,0.1279909]
[1758845089458,1.3290826,109200.0,109190.0,0.1279909]
[1758845089658,1.23756,109200.0,109190.0,0.1279909]
[1758845089964,1.23756,109200.0,109190.0,0.21015752]
[1758845091765,1.3290826,109200.0,109190.0,0.21015752]
[1758845092467,0.3618,109200.0,109190.0,0.21015752]
[1758845092660,1.2378,109200.0,109190.0,0.1279909]
[1758845092860,1.3293226,109200.0,109190.0,0.1279909]
[1758845093066,1.2378,109200.0,109190.0,0.1279909]
[1758845093767,0.001,109200.0,109190.0,0.1279909]
[1758845094065,0.87676,109200.0,109190.0,0.1279909]
[1758845094767,0.87676,109200.0,109190.0,0.70193206]
[1758845094967,1.3290826,109200.0,109190.0,0.70193206]
[1758845095171,0.87676,109200.0,109190.0,0.70193206]
[1758845095971,0.87676,109200.0,109190.0,0.70192855]
[1758845096476,0.87676,109200.0,109190.0,0.61957018]
[1758845098071,0.9682826,109200.0,109190.0,0.61957018]
[1758845098274,1.3290826,109200.0,109190.0,0.61038981]
[1758845099173,1.3290826,109200.0,109190.0,0.09552053]
[1758845099365,1.3290826,109200.0,109190.0,0.12857872]
[1758845099669,1.3290826,109200.0,109190.0,0.01317]
[1758845099865,1.3290826,109200.0,109190.0,0.09552838]
[1758845100059,1.7290826,109200.0,109190.0,0.09552838]
[1758845100462,1.7290826,109200.0,109190.0,0.11667838]
[1758845101271,1.7290826,109200.0,109190.0,0.03432]
[1758845101471,1.23752,109200.0,109190.0,0.1258509]
[1758845101672,1.23748,109200.0,109190.0,0.1258509]
[1758845101866,1.3290026,109200.0,109190.0,0.1258509]
[1758845102472,0.4533226,109200.0,109190.0,0.1258509]
[1758845102771,1.23752,109200.0,109190.0,0.1258509]
[1758845103371,0.3618,109200.0,109190.0,0.24125962]
[1758845103571,1.23748,109200.0,109190.0,0.24125962]
[1758845103770,1.23748,109200.0,109190.0,0.1258509]
[1758845104274,1.3290025,109200.0,109190.0,0.1258509]
[1758845104476,1.3290025,109200.0,109190.0,0.20820111]
[1758845105173,1.3290025,109200.0,109190.0,0.11667021]
[1758845105473,1.3290025,109200.0,109190.0,0.09552021]
[1758845106575,1.3290025,109200.0,109190.0,0.11710021]
[1758845106773,1.3290025,109200.0,109190.0,0.20863101]
[1758845108172,1.23748,109200.0,109190.0,0.20863101]
[1758845108375,1.23748,109200.0,109190.0,0.1262808]
[1758845109076,1.3290024,109200.0,109190.0,0.1262808]
[1758845109670,1.3290024,109200.0,109190.0,0.03475]
[1758845109873,1.3290024,109200.0,109190.0,0.11710488]
[1758845110971,1.3290024,109200.0,109190.0,0.20863568]
[1758845111677,1.3290024,109200.0,109190.0,0.11710488]
[1758845112269,1.3290024,109200.0,109190.0,0.09552488]
[1758845112573,0.0915311,109190.0,109180.0,0.2108536]
[1758845112776,0.4523311,109190.0,109180.0,0.21086951]
[1758845112977,0.4523311,109190.0,109180.0,0.09546079]
[1758845113481,0.46200529,109190.0,109180.0,0.09546079]
[1758845113775,0.46200529,109190.0,109180.0,0.08237079]
[1758845114072,0.0915395,109180.0,109170.0,0.12849872]
[1758845114276,1.3279395,109180.0,109170.0,0.01309]
[1758845114679,1.3279395,109180.0,109170.0,0.03467]
[1758845114870,0.3608,109180.0,109170.0,0.5262178]
[1758845115071,0.3608,109180.0,109170.0,0.60855111]
[1758845115271,1.2404,109190.0,109180.0,0.03462]
[1758845115272,1.3319311,109190.0,109180.0,0.03462]
[1758845115676,1.3279311,109190.0,109180.0,0.03462]
[1758845116278,1.2364,109190.0,109180.0,0.15002872]
[1758845116575,0.3608,109190.0,109180.0,0.31496606]
[1758845116885,0.37899333,109200.0,109190.0,0.1261511]
[1758845117071,1.18447333,109200.0,109190.0,0.24140168]
[1758845117577,1.16628,109200.0,109190.0,0.24140168]
[1758845118785,1.16728,109200.0,109190.0,0.14987058]
[1758845119675,1.2588027,109200.0,109190.0,0.14987058]
[1758845120081,1.2588027,109200.0,109190.0,0.23216828]
[1758845120382,1.6588027,109200.0,109190.0,0.0953377]
[1758845120796,1.2588027,109200.0,109190.0,0.1169177]
[1758845121499,1.2588027,109200.0,109190.0,0.0953377]
[1758845122997,1.6588027,109200.0,109190.0,0.0953377]
[1758845125100,1.6588027,109200.0,109190.0,0.01304]
[1758845125300,1.6588027,109200.0,109190.0,0.0953377]
[1758845126400,0.091531,109190.0,109180.0,0.0953377]
[1758845126602,0.452331,109190.0,109180.0,0.01304]
[1758845126900,0.452331,109190.0,109180.0,0.12829058]
[1758845127105,0.452331,109190.0,109180.0,0.09535153]
[1758845127505,0.452331,109190.0,109180.0,0.08331153]
[1758845127901,0.852331,109190.0,109180.0,0.08331153]
[1758845128301,0.852331,109190.0,109180.0,0.001]
[1758845128903,0.52526094,109190.0,109180.0,0.001]
[1758845129109,0.52526094,109190.0,109180.0,0.01365]
[1758845129408,0.52526094,109190.0,109180.0,0.001]
[1758845129710,0.53492684,109190.0,109180.0,0.01365]
[1758845129911,1.333931,109190.0,109180.0,0.03436]
[1758845130111,1.335931,109190.0,109180.0,0.03436]
[1758845131306,0.0915394,109180.0,109170.0,0.09496153]
[1758845131509,0.3608,109180.0,109170.0,0.03436]
[1758845131711,1.20552,109180.0,109170.0,0.1259078]
[1758845131908,0.3608,109180.0,109170.0,0.1259078]
[1758845132111,1.24292,109180.0,109170.0,0.20821933]
[1758845132301,1.24292,109180.0,109170.0,0.1259078]
[1758845133509,1.3354594,109180.0,109170.0,0.1259078]
[1758845134215,1.3354594,109180.0,109170.0,0.03436]
[1758845134508,0.0915478,109170.0,109160.0,0.21066815]
[1758845134714,0.4523478,109170.0,109160.0,0.03488]
[1758845134906,0.4523478,109170.0,109160.0,0.1264362]
[1758845135107,0.4523478,109170.0,109160.0,0.20868377]
[1758845135513,0.3608,109170.0,109160.0,0.20868377]
[1758845135710,0.4533412,109180.0,109170.0,0.1259078]
[1758845135917,1.24488,109180.0,109170.0,0.20815537]
[1758845136117,1.24488,109180.0,109170.0,0.1259078]